Department,Entity, Transaction Date, Expense Type, Expense Area, Supplier Name,Transaction number, Amount
FCDO,CSC,03/11/2023,Scholar Allowances,Award Costs,Scholar,PIN065905,600
FCDO,CSC,03/11/2023,Scholar Stipend,Award Costs,Scholar,PIN065911,2020.5
FCDO,CSC,03/11/2023,Scholar Allowances,Award Costs,Scholar,PIN066023,522
FCDO,CSC,03/11/2023,Scholar Stipend,Award Costs,Scholar,PIN066023,2655
FCDO,CSC,03/11/2023,Scholar Allowances,Award Costs,Scholar,PIN066023,522
FCDO,CSC,03/11/2023,Scholar Stipend,Award Costs,Scholar,PIN066023,2699.25
FCDO,CSC,03/11/2023,Bank Charges,Programme Costs,MasterCard Prepaid Management Services Ltd,PIN066023,63.98
FCDO,CSC,03/11/2023,Cash Card Transfers,Award Costs,Scholar,PIN065914,7209
FCDO,CSC,03/11/2023,Cash Card Transfers,Award Costs,Scholar,PIN065915,4883.63
FCDO,CSC,03/11/2023,Cash Card Transfers,Award Costs,Scholar,PIN065916,3614.25
FCDO,CSC,03/11/2023,Cash Card Transfers,Award Costs,Scholar,PIN065917,4712.68
FCDO,CSC,03/11/2023,Scholar Stipend,Award Costs,Scholar,PIN065904,663.82
FCDO,CSC,06/11/2023,Secretariat Service Provision,Programme Costs,Scholar,NOM001292,381.44
FCDO,CSC,06/11/2023,Secretariat Service Provision,Programme Costs,Scholar,NOM001292,1748.48
FCDO,CSC,06/11/2023,Scholar Allowances,Award Costs,Scholar,PIN066025,522
FCDO,CSC,06/11/2023,Scholar Stipend,Award Costs,Scholar,PIN066025,2694
FCDO,CSC,06/11/2023,Cash Card Transfers,Award Costs,Scholar,PIN066025,-3614.25
FCDO,CSC,06/11/2023,Cash Card Transfers,Award Costs,Scholar,PIN066025,-4883.63
FCDO,CSC,06/11/2023,Cash Card Transfers,Award Costs,Scholar,PIN066025,-4712.68
FCDO,CSC,06/11/2023,Cash Card Transfers,Award Costs,Scholar,PIN066025,-7209
FCDO,CSC,06/11/2023,Bank Charges,Programme Costs,MasterCard Prepaid Management Services Ltd,PIN066025,32.16
FCDO,CSC,07/11/2023,DfID Grant Income,Programme Costs,FCDO,SIN000093,-106000
FCDO,CSC,07/11/2023,DfID Grant Income,Programme Costs,FCDO,SIN000093,-6950000
FCDO,CSC,09/11/2023,Scholar Allowances,Award Costs,Scholar,PIN066026,522
FCDO,CSC,09/11/2023,Scholar Stipend,Award Costs,Scholar,PIN066026,2630.25
FCDO,CSC,09/11/2023,Scholar Allowances,Award Costs,Scholar,PIN066026,522
FCDO,CSC,09/11/2023,Scholar Stipend,Award Costs,Scholar,PIN066026,2630.25
FCDO,CSC,09/11/2023,Scholar Allowances,Award Costs,Scholar,PIN066026,522
FCDO,CSC,09/11/2023,Scholar Stipend,Award Costs,Scholar,PIN066026,2409
FCDO,CSC,09/11/2023,Scholar Allowances,Award Costs,Scholar,PIN066026,522
FCDO,CSC,09/11/2023,Scholar Stipend,Award Costs,Scholar,PIN066026,2409
FCDO,CSC,09/11/2023,Scholar Allowances,Award Costs,Scholar,PIN066026,522
FCDO,CSC,09/11/2023,Scholar Stipend,Award Costs,Scholar,PIN066026,2320.5
FCDO,CSC,09/11/2023,Scholar Allowances,Award Costs,Scholar,PIN066026,522
FCDO,CSC,09/11/2023,Scholar Stipend,Award Costs,Scholar,PIN066026,2453.25
FCDO,CSC,09/11/2023,Bank Charges,Programme Costs,MasterCard Prepaid Management Services Ltd,PIN066026,179.84
FCDO,CSC,09/11/2023,Scholar Stipend,Award Costs,Scholar,PIN066027,-2655
FCDO,CSC,09/11/2023,Scholar Allowances,Award Costs,Scholar,PIN066027,-522
FCDO,CSC,10/11/2023,Tuition Fee,Award Costs,The University of Salford,PIN065927,6000
FCDO,CSC,10/11/2023,Tuition Fee,Award Costs,University of Manchester,PIN065928,5167.8
FCDO,CSC,10/11/2023,Tuition Fee,Award Costs,University of Manchester,PIN065929,5167.8
FCDO,CSC,10/11/2023,Tuition Fee,Award Costs,University of Manchester,PIN065923,5331.6
FCDO,CSC,10/11/2023,Tuition Fee,Award Costs,University of Manchester,PIN065924,5331.6
FCDO,CSC,10/11/2023,Tuition Fee,Award Costs,University of Manchester,PIN065925,5331.6
FCDO,CSC,10/11/2023,Tuition Fee,Award Costs,University of Strathclyde,PIN065926,4900
FCDO,CSC,10/11/2023,Tuition Fee,Award Costs,University of Leicester,PIN065992,20600
FCDO,CSC,10/11/2023,Tuition Fee,Award Costs,University of Strathclyde,PIN065950,4900
FCDO,CSC,10/11/2023,Tuition Fee,Award Costs,University of Strathclyde,PIN065949,4900
FCDO,CSC,10/11/2023,Tuition Fee,Award Costs,The University of Edinburgh,PIN065989,1065
FCDO,CSC,10/11/2023,Tuition Fee,Award Costs,The University of Edinburgh,PIN065991,1065
FCDO,CSC,10/11/2023,Scholar Travel,Award Costs,Diversity Travel,PIN066004,2966.86
FCDO,CSC,10/11/2023,Scholar Travel,Award Costs,Diversity Travel,PIN066004,2914.49
FCDO,CSC,10/11/2023,Scholar Travel,Award Costs,Diversity Travel,PIN066004,2638.37
FCDO,CSC,10/11/2023,Scholar Travel,Award Costs,Diversity Travel,PIN066004,2578.92
FCDO,CSC,10/11/2023,Scholar Travel,Award Costs,Diversity Travel,PIN066004,2572.14
FCDO,CSC,10/11/2023,Scholar Travel,Award Costs,Diversity Travel,PIN066004,2510.1
FCDO,CSC,10/11/2023,Scholar Travel,Award Costs,Diversity Travel,PIN066004,2449.16
FCDO,CSC,10/11/2023,Scholar Travel,Award Costs,Diversity Travel,PIN066004,2390.6
FCDO,CSC,10/11/2023,Scholar Travel,Award Costs,Diversity Travel,PIN066004,2374.5
FCDO,CSC,10/11/2023,Scholar Travel,Award Costs,Diversity Travel,PIN066004,2321.72
FCDO,CSC,10/11/2023,Scholar Travel,Award Costs,Diversity Travel,PIN066004,2200.23
FCDO,CSC,10/11/2023,Scholar Travel,Award Costs,Diversity Travel,PIN066004,2083.39
FCDO,CSC,10/11/2023,Scholar Travel,Award Costs,Diversity Travel,PIN066004,2083.39
FCDO,CSC,10/11/2023,Scholar Travel,Award Costs,Diversity Travel,PIN066004,2058.73
FCDO,CSC,10/11/2023,Scholar Travel,Award Costs,Diversity Travel,PIN066004,1960.2
FCDO,CSC,10/11/2023,Scholar Travel,Award Costs,Diversity Travel,PIN066004,1823.79
FCDO,CSC,10/11/2023,Scholar Travel,Award Costs,Diversity Travel,PIN066004,1787.39
FCDO,CSC,10/11/2023,Scholar Travel,Award Costs,Diversity Travel,PIN066004,1741.2
FCDO,CSC,10/11/2023,Scholar Travel,Award Costs,Diversity Travel,PIN066004,1724.8
FCDO,CSC,10/11/2023,Fieldwork Airfare,Award Costs,Diversity Travel,PIN066004,1724.32
FCDO,CSC,10/11/2023,Scholar Travel,Award Costs,Diversity Travel,PIN066004,1699.2
FCDO,CSC,10/11/2023,Scholar Travel,Award Costs,Diversity Travel,PIN066004,1640.06
FCDO,CSC,10/11/2023,Scholar Travel,Award Costs,Diversity Travel,PIN066004,1635.26
FCDO,CSC,10/11/2023,Scholar Travel,Award Costs,Diversity Travel,PIN066004,1632.52
FCDO,CSC,10/11/2023,Scholar Travel,Award Costs,Diversity Travel,PIN066004,1608.34
FCDO,CSC,10/11/2023,Scholar Travel,Award Costs,Diversity Travel,PIN066004,1605.93
FCDO,CSC,10/11/2023,Scholar Travel,Award Costs,Diversity Travel,PIN066004,1579.21
FCDO,CSC,10/11/2023,Scholar Travel,Award Costs,Diversity Travel,PIN066004,1577.53
FCDO,CSC,10/11/2023,Scholar Travel,Award Costs,Diversity Travel,PIN066004,1547.84
FCDO,CSC,10/11/2023,Scholar Travel,Award Costs,Diversity Travel,PIN066004,1527.5
FCDO,CSC,10/11/2023,Scholar Travel,Award Costs,Diversity Travel,PIN066004,1519.4
FCDO,CSC,10/11/2023,Scholar Travel,Award Costs,Diversity Travel,PIN066004,1418.46
FCDO,CSC,10/11/2023,Scholar Travel,Award Costs,Diversity Travel,PIN066004,1399.99
FCDO,CSC,10/11/2023,Scholar Travel,Award Costs,Diversity Travel,PIN066004,1340.46
FCDO,CSC,10/11/2023,Scholar Travel,Award Costs,Diversity Travel,PIN066004,1300.71
FCDO,CSC,10/11/2023,Scholar Travel,Award Costs,Diversity Travel,PIN066004,1275.1
FCDO,CSC,10/11/2023,Scholar Travel,Award Costs,Diversity Travel,PIN066004,1262.19
FCDO,CSC,10/11/2023,Scholar Travel,Award Costs,Diversity Travel,PIN066004,1257.58
FCDO,CSC,10/11/2023,Scholar Travel,Award Costs,Diversity Travel,PIN066004,1243.06
FCDO,CSC,10/11/2023,Scholar Travel,Award Costs,Diversity Travel,PIN066004,1242.52
FCDO,CSC,10/11/2023,Scholar Travel,Award Costs,Diversity Travel,PIN066004,1239.09
FCDO,CSC,10/11/2023,Scholar Travel,Award Costs,Diversity Travel,PIN066004,1200.45
FCDO,CSC,10/11/2023,Scholar Travel,Award Costs,Diversity Travel,PIN066004,1197.9
FCDO,CSC,10/11/2023,Scholar Travel,Award Costs,Diversity Travel,PIN066004,1174.71
FCDO,CSC,10/11/2023,Scholar Travel,Award Costs,Diversity Travel,PIN066004,1168.9
FCDO,CSC,10/11/2023,Scholar Travel,Award Costs,Diversity Travel,PIN066004,1162.6
FCDO,CSC,10/11/2023,Scholar Travel,Award Costs,Diversity Travel,PIN066004,1144.71
FCDO,CSC,10/11/2023,Scholar Travel,Award Costs,Diversity Travel,PIN066004,1135.78
FCDO,CSC,10/11/2023,Scholar Travel,Award Costs,Diversity Travel,PIN066004,1133.58
FCDO,CSC,10/11/2023,Scholar Travel,Award Costs,Diversity Travel,PIN066004,1123.99
FCDO,CSC,10/11/2023,Scholar Travel,Award Costs,Diversity Travel,PIN066004,1115.2
FCDO,CSC,10/11/2023,Scholar Travel,Award Costs,Diversity Travel,PIN066004,1111.68
FCDO,CSC,10/11/2023,Scholar Travel,Award Costs,Diversity Travel,PIN066004,1110.89
FCDO,CSC,10/11/2023,Scholar Travel,Award Costs,Diversity Travel,PIN066004,1102.44
FCDO,CSC,10/11/2023,Scholar Travel,Award Costs,Diversity Travel,PIN066004,1090.4
FCDO,CSC,10/11/2023,Scholar Travel,Award Costs,Diversity Travel,PIN066004,1082.49
FCDO,CSC,10/11/2023,Scholar Travel,Award Costs,Diversity Travel,PIN066004,1077.16
FCDO,CSC,10/11/2023,Scholar Travel,Award Costs,Diversity Travel,PIN066004,1063.81
FCDO,CSC,10/11/2023,Scholar Travel,Award Costs,Diversity Travel,PIN066004,1047.84
FCDO,CSC,10/11/2023,Scholar Travel,Award Costs,Diversity Travel,PIN066004,1036.69
FCDO,CSC,10/11/2023,Scholar Travel,Award Costs,Diversity Travel,PIN066004,1021.7
FCDO,CSC,10/11/2023,Scholar Travel,Award Costs,Diversity Travel,PIN066004,1008.14
FCDO,CSC,10/11/2023,Scholar Travel,Award Costs,Diversity Travel,PIN066004,994.36
FCDO,CSC,10/11/2023,Scholar Travel,Award Costs,Diversity Travel,PIN066004,979.17
FCDO,CSC,10/11/2023,Scholar Travel,Award Costs,Diversity Travel,PIN066004,979.17
FCDO,CSC,10/11/2023,Scholar Travel,Award Costs,Diversity Travel,PIN066004,974.65
FCDO,CSC,10/11/2023,Scholar Travel,Award Costs,Diversity Travel,PIN066004,962.99
FCDO,CSC,10/11/2023,Scholar Travel,Award Costs,Diversity Travel,PIN066004,961.46
FCDO,CSC,10/11/2023,Scholar Travel,Award Costs,Diversity Travel,PIN066004,959.05
FCDO,CSC,10/11/2023,Scholar Travel,Award Costs,Diversity Travel,PIN066004,904.8
FCDO,CSC,10/11/2023,Scholar Travel,Award Costs,Diversity Travel,PIN066004,903.48
FCDO,CSC,10/11/2023,Scholar Travel,Award Costs,Diversity Travel,PIN066004,901.45
FCDO,CSC,10/11/2023,Scholar Travel,Award Costs,Diversity Travel,PIN066004,899.07
FCDO,CSC,10/11/2023,Scholar Travel,Award Costs,Diversity Travel,PIN066004,895.35
FCDO,CSC,10/11/2023,Scholar Travel,Award Costs,Diversity Travel,PIN066004,883.5
FCDO,CSC,10/11/2023,Scholar Travel,Award Costs,Diversity Travel,PIN066004,881.77
FCDO,CSC,10/11/2023,Scholar Travel,Award Costs,Diversity Travel,PIN066004,877.04
FCDO,CSC,10/11/2023,Scholar Travel,Award Costs,Diversity Travel,PIN066004,870.52
FCDO,CSC,10/11/2023,Scholar Travel,Award Costs,Diversity Travel,PIN066004,868.23
FCDO,CSC,10/11/2023,Scholar Travel,Award Costs,Diversity Travel,PIN066004,845.33
FCDO,CSC,10/11/2023,Scholar Travel,Award Costs,Diversity Travel,PIN066004,829.17
FCDO,CSC,10/11/2023,Scholar Travel,Award Costs,Diversity Travel,PIN066004,827.58
FCDO,CSC,10/11/2023,Scholar Travel,Award Costs,Diversity Travel,PIN066004,814.36
FCDO,CSC,10/11/2023,Scholar Travel,Award Costs,Diversity Travel,PIN066004,803.91
FCDO,CSC,10/11/2023,Scholar Travel,Award Costs,Diversity Travel,PIN066004,785.71
FCDO,CSC,10/11/2023,Scholar Travel,Award Costs,Diversity Travel,PIN066004,783.77
FCDO,CSC,10/11/2023,Scholar Travel,Award Costs,Diversity Travel,PIN066004,756.08
FCDO,CSC,10/11/2023,Scholar Travel,Award Costs,Diversity Travel,PIN066004,754.81
FCDO,CSC,10/11/2023,Scholar Travel,Award Costs,Diversity Travel,PIN066004,699.45
FCDO,CSC,10/11/2023,Scholar Travel,Award Costs,Diversity Travel,PIN066004,687.47
FCDO,CSC,10/11/2023,Scholar Travel,Award Costs,Diversity Travel,PIN066004,680.84
FCDO,CSC,10/11/2023,Scholar Travel,Award Costs,Diversity Travel,PIN066004,640.61
FCDO,CSC,10/11/2023,Scholar Travel,Award Costs,Diversity Travel,PIN066004,300.2
FCDO,CSC,10/11/2023,Scholar Travel,Award Costs,Diversity Travel,PIN066004,118
FCDO,CSC,10/11/2023,Scholar Travel,Award Costs,Diversity Travel,PIN066004,101
FCDO,CSC,10/11/2023,Scholar Travel,Award Costs,Diversity Travel,PIN066004,100
FCDO,CSC,10/11/2023,Scholar Travel,Award Costs,Diversity Travel,PIN066004,95.4
FCDO,CSC,10/11/2023,Scholar Travel,Award Costs,Diversity Travel,PIN066004,90.9
FCDO,CSC,10/11/2023,Scholar Travel,Award Costs,Diversity Travel,PIN066004,87.9
FCDO,CSC,10/11/2023,Scholar Travel,Award Costs,Diversity Travel,PIN066004,84.7
FCDO,CSC,10/11/2023,Scholar Travel,Award Costs,Diversity Travel,PIN066004,78.86
FCDO,CSC,10/11/2023,Scholar Travel,Award Costs,Diversity Travel,PIN066004,68.9
FCDO,CSC,10/11/2023,Scholar Travel,Award Costs,Diversity Travel,PIN066004,68.9
FCDO,CSC,10/11/2023,Scholar Travel,Award Costs,Diversity Travel,PIN066004,62.4
FCDO,CSC,10/11/2023,Scholar Travel,Award Costs,Diversity Travel,PIN066004,62
FCDO,CSC,10/11/2023,Scholar Travel,Award Costs,Diversity Travel,PIN066004,58.4
FCDO,CSC,10/11/2023,Scholar Travel,Award Costs,Diversity Travel,PIN066004,58.4
FCDO,CSC,10/11/2023,Scholar Travel,Award Costs,Diversity Travel,PIN066004,58.4
FCDO,CSC,10/11/2023,Scholar Travel,Award Costs,Diversity Travel,PIN066004,56
FCDO,CSC,10/11/2023,Scholar Travel,Award Costs,Diversity Travel,PIN066004,55.9
FCDO,CSC,10/11/2023,Scholar Travel,Award Costs,Diversity Travel,PIN066004,55
FCDO,CSC,10/11/2023,Scholar Travel,Award Costs,Diversity Travel,PIN066004,53.7
FCDO,CSC,10/11/2023,Scholar Travel,Award Costs,Diversity Travel,PIN066004,53.7
FCDO,CSC,10/11/2023,Scholar Travel,Award Costs,Diversity Travel,PIN066004,52.7
FCDO,CSC,10/11/2023,Scholar Travel,Award Costs,Diversity Travel,PIN066004,50.6
FCDO,CSC,10/11/2023,Scholar Travel,Award Costs,Diversity Travel,PIN066004,49
FCDO,CSC,10/11/2023,Scholar Travel,Award Costs,Diversity Travel,PIN066004,40.9
FCDO,CSC,10/11/2023,Scholar Travel,Award Costs,Diversity Travel,PIN066004,35.7
FCDO,CSC,10/11/2023,Scholar Travel,Award Costs,Diversity Travel,PIN066004,34.2
FCDO,CSC,10/11/2023,Scholar Travel,Award Costs,Diversity Travel,PIN066004,28.1
FCDO,CSC,10/11/2023,Scholar Travel,Award Costs,Diversity Travel,PIN066004,28
FCDO,CSC,10/11/2023,Scholar Travel,Award Costs,Diversity Travel,PIN066004,26.7
FCDO,CSC,10/11/2023,Scholar Travel,Award Costs,Diversity Travel,PIN066004,26.6
FCDO,CSC,10/11/2023,Scholar Travel,Award Costs,Diversity Travel,PIN066004,8.1
FCDO,CSC,10/11/2023,Scholar Travel,Award Costs,Diversity Travel,PIN066004,-949.59
FCDO,CSC,10/11/2023,Scholar Travel,Award Costs,Diversity Travel,PIN066004,-964.91
FCDO,CSC,10/11/2023,Scholar Travel,Award Costs,Diversity Travel,PIN066004,-1066.45
FCDO,CSC,10/11/2023,Scholar Travel,Award Costs,Diversity Travel,PIN066004,-1404.92
FCDO,CSC,10/11/2023,Scholar Travel,Award Costs,Diversity Travel,PIN066004,-1511.07
FCDO,CSC,10/11/2023,Scholar Travel,Award Costs,Diversity Travel,PIN066004,-1559.02
FCDO,CSC,10/11/2023,Scholar Travel,Award Costs,Diversity Travel,PIN066004,-1559.19
FCDO,CSC,10/11/2023,Scholar Travel,Award Costs,Diversity Travel,PIN066004,-1914.2
FCDO,CSC,10/11/2023,Scholar Travel,Award Costs,Diversity Travel,PIN066004,-1960.2
FCDO,CSC,10/11/2023,Scholar Travel,Award Costs,Diversity Travel,PIN066004,-1960.2
FCDO,CSC,10/11/2023,Scholar Travel,Award Costs,Diversity Travel,PIN066004,-2339.9
FCDO,CSC,10/11/2023,Tuition Fee,Award Costs,Loughborough University,PIN065930,-1733.25
FCDO,CSC,10/11/2023,Tuition Fee,Award Costs,Loughborough University,PIN065931,1637.96
FCDO,CSC,10/11/2023,Tuition Fee,Award Costs,Loughborough University,PIN065932,1637.96
FCDO,CSC,10/11/2023,Tuition Fee,Award Costs,Loughborough University,PIN065933,1637.96
FCDO,CSC,10/11/2023,Tuition Fee,Award Costs,Loughborough University,PIN065934,1559.93
FCDO,CSC,10/11/2023,Tuition Fee,Award Costs,Loughborough University,PIN065935,1559.93
FCDO,CSC,10/11/2023,Tuition Fee,Award Costs,Loughborough University,PIN065936,1559.93
FCDO,CSC,10/11/2023,Tuition Fee,Award Costs,Loughborough University,PIN065937,1733.25
FCDO,CSC,10/11/2023,Tuition Fee,Award Costs,Loughborough University,PIN065938,1559.93
FCDO,CSC,10/11/2023,Tuition Fee,Award Costs,Loughborough University,PIN065939,1733.25
FCDO,CSC,10/11/2023,Tuition Fee,Award Costs,Loughborough University,PIN065940,1559.93
FCDO,CSC,10/11/2023,Tuition Fee,Award Costs,Loughborough University,PIN065941,1559.93
FCDO,CSC,10/11/2023,Tuition Fee,Award Costs,Loughborough University,PIN065942,-1733.25
FCDO,CSC,10/11/2023,Tuition Fee,Award Costs,Loughborough University,PIN065951,1819.95
FCDO,CSC,10/11/2023,Tuition Fee,Award Costs,Loughborough University,PIN065952,1819.95
FCDO,CSC,10/11/2023,Tuition Fee,Award Costs,Loughborough University,PIN065953,1637.96
FCDO,CSC,10/11/2023,Tuition Fee,Award Costs,Loughborough University,PIN065954,1637.96
FCDO,CSC,10/11/2023,Tuition Fee,Award Costs,Loughborough University,PIN065955,1637.96
FCDO,CSC,10/11/2023,Tuition Fee,Award Costs,Loughborough University,PIN065956,1637.96
FCDO,CSC,10/11/2023,Tuition Fee,Award Costs,Loughborough University,PIN065957,1637.96
FCDO,CSC,10/11/2023,Tuition Fee,Award Costs,Loughborough University,PIN065958,1637.96
FCDO,CSC,10/11/2023,Tuition Fee,Award Costs,Loughborough University,PIN065959,1733.25
FCDO,CSC,10/11/2023,Tuition Fee,Award Costs,Loughborough University,PIN065960,1733.25
FCDO,CSC,10/11/2023,Tuition Fee,Award Costs,Loughborough University,PIN065961,1733.25
FCDO,CSC,10/11/2023,Tuition Fee,Award Costs,Loughborough University,PIN065962,1733.25
FCDO,CSC,10/11/2023,Tuition Fee,Award Costs,Loughborough University,PIN065963,1559.93
FCDO,CSC,10/11/2023,Tuition Fee,Award Costs,Loughborough University,PIN065964,1559.93
FCDO,CSC,10/11/2023,Tuition Fee,Award Costs,Loughborough University,PIN065965,1559.93
FCDO,CSC,10/11/2023,Tuition Fee,Award Costs,Loughborough University,PIN065966,1733.25
FCDO,CSC,10/11/2023,Tuition Fee,Award Costs,Loughborough University,PIN065967,1733.25
FCDO,CSC,10/11/2023,Tuition Fee,Award Costs,Loughborough University,PIN065968,1733.25
FCDO,CSC,10/11/2023,Tuition Fee,Award Costs,Loughborough University,PIN065969,1733.25
FCDO,CSC,10/11/2023,Tuition Fee,Award Costs,Loughborough University,PIN065970,1819.95
FCDO,CSC,10/11/2023,Tuition Fee,Award Costs,Loughborough University,PIN065971,1819.95
FCDO,CSC,10/11/2023,Tuition Fee,Award Costs,Loughborough University,PIN065972,1559.93
FCDO,CSC,10/11/2023,Tuition Fee,Award Costs,Loughborough University,PIN065973,1559.93
FCDO,CSC,10/11/2023,Tuition Fee,Award Costs,Loughborough University,PIN065974,1559.93
FCDO,CSC,10/11/2023,Tuition Fee,Award Costs,Loughborough University,PIN065975,1559.93
FCDO,CSC,10/11/2023,Tuition Fee,Award Costs,Loughborough University,PIN065976,1733.25
FCDO,CSC,10/11/2023,Tuition Fee,Award Costs,Loughborough University,PIN065977,1733.25
FCDO,CSC,10/11/2023,Tuition Fee,Award Costs,Loughborough University,PIN065978,1733.25
FCDO,CSC,10/11/2023,Tuition Fee,Award Costs,Loughborough University,PIN065979,1733.25
FCDO,CSC,10/11/2023,Tuition Fee,Award Costs,Loughborough University,PIN065980,1559.93
FCDO,CSC,10/11/2023,Tuition Fee,Award Costs,Loughborough University,PIN065981,1559.93
FCDO,CSC,10/11/2023,Tuition Fee,Award Costs,Loughborough University,PIN065982,1559.93
FCDO,CSC,10/11/2023,Tuition Fee,Award Costs,Loughborough University,PIN065983,1637.96
FCDO,CSC,10/11/2023,Tuition Fee,Award Costs,University of Dundee,PIN065984,10696
FCDO,CSC,10/11/2023,Tuition Fee,Award Costs,University of Dundee,PIN065985,16720
FCDO,CSC,10/11/2023,Tuition Fee,Award Costs,Cardiff University,PIN065986,7160
FCDO,CSC,10/11/2023,Award Support Costs,Award Costs,University of Glasgow,PIN065948,5000
FCDO,CSC,10/11/2023,Tuition Fee,Award Costs,Universty of Westminster,PIN065943,3198.3
FCDO,CSC,10/11/2023,Award Support Costs,Award Costs,University of Manchester,PIN065944,2500
FCDO,CSC,10/11/2023,Award Support Costs,Award Costs,University of Chester,PIN065990,10000
FCDO,CSC,10/11/2023,Award Support Costs,Award Costs,University of Aberdeen,PIN065945,5000
FCDO,CSC,10/11/2023,Tuition Fee,Award Costs,University of Aberdeen,PIN065945,17200
FCDO,CSC,10/11/2023,Tuition Fee,Award Costs,University of Essex,PIN065946,4771.67
FCDO,CSC,10/11/2023,Tuition Fee,Award Costs,Green Templeton College,PIN065947,6000
FCDO,CSC,10/11/2023,Tuition Fee,Award Costs,University of Bath,PIN065987,22500
FCDO,CSC,10/11/2023,Scholar Allowances,Award Costs,University of Bath,PIN065987,200
FCDO,CSC,10/11/2023,Scholar Allowances,Award Costs,University of Bath,PIN065987,225
FCDO,CSC,10/11/2023,Visa Costs,Award Costs,University of Bath,PIN065987,44
FCDO,CSC,10/11/2023,Alumni Engagement,Programme Costs,TFW Printers,PIN065998,1512
FCDO,CSC,10/11/2023,Engagement,Programme Costs,Scholar,PIN066000,1249.2
FCDO,CSC,10/11/2023,Scholar Allowances,Award Costs,Scholar,PIN066001,576
FCDO,CSC,10/11/2023,Scholar Allowances,Award Costs,Scholar,PIN066001,290
FCDO,CSC,10/11/2023,Scholar Stipend,Award Costs,Scholar,PIN066001,1347
FCDO,CSC,10/11/2023,Scholar Stipend,Award Costs,Scholar,PIN066002,1347
FCDO,CSC,10/11/2023,Scholar Allowances,Award Costs,Scholar,PIN066003,290
FCDO,CSC,10/11/2023,Scholar Allowances,Award Costs,Scholar,PIN066003,290
FCDO,CSC,10/11/2023,Scholar Stipend,Award Costs,Scholar,PIN066003,1652
FCDO,CSC,10/11/2023,Cash Card Transfers,Award Costs,Scholar,PIN066005,3859.51
FCDO,CSC,10/11/2023,Cash Card Transfers,Award Costs,Scholar,PIN066006,4658.57
FCDO,CSC,10/11/2023,Cash Card Transfers,Award Costs,Scholar,PIN066007,3000.06
FCDO,CSC,13/11/2023,Cash Card Transfers,Award Costs,Scholar,PIN066107,-3000.06
FCDO,CSC,13/11/2023,Cash Card Transfers,Award Costs,Scholar,PIN066107,-4658.57
FCDO,CSC,13/11/2023,Cash Card Transfers,Award Costs,Scholar,PIN066107,-3859.51
FCDO,CSC,14/11/2023,Scholar Allowances,Award Costs,Scholar,PIN066008,3589.55
FCDO,CSC,14/11/2023,Scholar Allowances,Award Costs,Scholar,PIN066009,1564.33
FCDO,CSC,14/11/2023,Scholar Allowances,Award Costs,Scholar,PIN066009,1564.33
FCDO,CSC,14/11/2023,Scholar Allowances,Award Costs,Scholar,PIN066010,2648.08
FCDO,CSC,14/11/2023,Scholar Allowances,Award Costs,Scholar,PIN066011,994.03
FCDO,CSC,14/11/2023,Cash Card Transfers,Award Costs,Scholar,PIN066012,4766.78
FCDO,CSC,17/11/2023,Scholar Allowances,Award Costs,Scholar,PIN066013,600
FCDO,CSC,17/11/2023,Scholar Allowances,Award Costs,Scholar,PIN066017,600
FCDO,CSC,17/11/2023,Scholar Stipend,Award Costs,Scholar,PIN066022,1347
FCDO,CSC,17/11/2023,Scholar Allowances,Award Costs,Scholar,PIN066108,522
FCDO,CSC,17/11/2023,Scholar Stipend,Award Costs,Scholar,PIN066108,1922.25
FCDO,CSC,17/11/2023,Scholar Allowances,Award Costs,Scholar,PIN066108,522
FCDO,CSC,17/11/2023,Scholar Stipend,Award Costs,Scholar,PIN066108,2629.04
FCDO,CSC,17/11/2023,Scholar Allowances,Award Costs,Scholar,PIN066108,522
FCDO,CSC,17/11/2023,Scholar Stipend,Award Costs,Scholar,PIN066108,2168.25
FCDO,CSC,17/11/2023,Cash Card Transfers,Award Costs,Scholar,PIN066108,-4766.78
FCDO,CSC,17/11/2023,Bank Charges,Programme Costs,MasterCard Prepaid Management Services Ltd,PIN066108,82.85
FCDO,CSC,21/11/2023,Scholar Advances,Award Costs,Scholar,PIN066028,1300
FCDO,CSC,21/11/2023,Scholar Stipend,Award Costs,Scholar,PIN066029,1055.8
FCDO,CSC,21/11/2023,Scholar Allowances,Award Costs,Scholar,PIN066031,646.64
FCDO,CSC,21/11/2023,Scholar Allowances,Award Costs,Scholar,PIN066031,646.64
FCDO,CSC,21/11/2023,Scholar Allowances,Award Costs,Scholar,PIN066032,779.92
FCDO,CSC,21/11/2023,Scholar Allowances,Award Costs,Scholar,PIN066033,740.66
FCDO,CSC,21/11/2023,Scholar Allowances,Award Costs,Scholar,PIN066033,499.6
FCDO,CSC,21/11/2023,Cash Card Transfers,Award Costs,Scholar,PIN066034,2074.11
FCDO,CSC,21/11/2023,Cash Card Transfers,Award Costs,Scholar,PIN066035,2603.24
FCDO,CSC,22/11/2023,Scholar Allowances,Award Costs,Scholar,PIN066109,522
FCDO,CSC,22/11/2023,Scholar Stipend,Award Costs,Scholar,PIN066109,1922.25
FCDO,CSC,22/11/2023,Bank Charges,Programme Costs,MasterCard Prepaid Management Services Ltd,PIN066109,24.44
FCDO,CSC,22/11/2023,Cash Card Transfers,Award Costs,Scholar,PIN066121,-2074.11
FCDO,CSC,22/11/2023,Cash Card Transfers,Award Costs,Scholar,PIN066121,-2603.24
FCDO,CSC,24/11/2023,Tuition Fee,Award Costs,The University of Edinburgh,PIN066049,1010
FCDO,CSC,24/11/2023,Tuition Fee,Award Costs,The University of Edinburgh,PIN066038,1010
FCDO,CSC,24/11/2023,Tuition Fee,Award Costs,The University of Edinburgh,PIN066040,1010
FCDO,CSC,24/11/2023,Tuition Fee,Award Costs,The University of Edinburgh,PIN066045,1010
FCDO,CSC,24/11/2023,Tuition Fee,Award Costs,The University of Edinburgh,PIN066050,1010
FCDO,CSC,24/11/2023,Tuition Fee,Award Costs,The University of Edinburgh,PIN066051,1010
FCDO,CSC,24/11/2023,Tuition Fee,Award Costs,The University of Edinburgh,PIN066046,1010
FCDO,CSC,24/11/2023,Tuition Fee,Award Costs,The University of Edinburgh,PIN066041,1010
FCDO,CSC,24/11/2023,Tuition Fee,Award Costs,The University of Edinburgh,PIN066042,1010
FCDO,CSC,24/11/2023,Tuition Fee,Award Costs,The University of Edinburgh,PIN066052,1010
FCDO,CSC,24/11/2023,Tuition Fee,Award Costs,The University of Edinburgh,PIN066047,1010
FCDO,CSC,24/11/2023,Tuition Fee,Award Costs,The University of Edinburgh,PIN066048,1010
FCDO,CSC,24/11/2023,Tuition Fee,Award Costs,The University of Edinburgh,PIN066043,1010
FCDO,CSC,24/11/2023,Tuition Fee,Award Costs,Loughborough University,PIN066037,1500
FCDO,CSC,24/11/2023,Tuition Fee,Award Costs,Loughborough University,PIN066039,1500
FCDO,CSC,24/11/2023,Tuition Fee,Award Costs,Loughborough University,PIN066061,1500
FCDO,CSC,24/11/2023,Tuition Fee,Award Costs,Loughborough University,PIN066062,1500
FCDO,CSC,24/11/2023,Tuition Fee,Award Costs,University of St  Andrews,PIN066069,67500
FCDO,CSC,24/11/2023,Tuition Fee,Award Costs,University of St  Andrews,PIN066069,18000
FCDO,CSC,24/11/2023,Tuition Fee,Award Costs,Queen Margaret University,PIN066095,17000
FCDO,CSC,24/11/2023,Tuition Fee,Award Costs,University of Aberdeen,PIN066073,5000
FCDO,CSC,24/11/2023,Tuition Fee,Award Costs,The University of Edinburgh,PIN066044,6370
FCDO,CSC,24/11/2023,Tuition Fee,Award Costs,The University of Edinburgh,PIN066053,6370
FCDO,CSC,24/11/2023,Tuition Fee,Award Costs,The University of Edinburgh,PIN066092,18000
FCDO,CSC,24/11/2023,Tuition Fee,Award Costs,University of Aberdeen,PIN066071,18000
FCDO,CSC,24/11/2023,Tuition Fee,Award Costs,University of Aberdeen,PIN066072,18000
FCDO,CSC,24/11/2023,Tuition Fee,Award Costs,University of Aberdeen,PIN066074,18000
FCDO,CSC,24/11/2023,Award Support Costs,Award Costs,Scholar,PIN066057,5000
FCDO,CSC,24/11/2023,Tuition Fee,Award Costs,Scholar,PIN066070,13208
FCDO,CSC,24/11/2023,Programme VAT,Programme Costs,Scholar,PIN066104,1176.19
FCDO,CSC,24/11/2023,Alumni Engagement,Programme Costs,Scholar,PIN066104,5880.93
FCDO,CSC,24/11/2023,Alumni Engagement,Programme Costs,Scholar,PIN066104,11427.21
FCDO,CSC,24/11/2023,Programme VAT,Programme Costs,Scholar,PIN066104,10294
FCDO,CSC,24/11/2023,Alumni Engagement,Programme Costs,Scholar,PIN066104,51470
FCDO,CSC,24/11/2023,Programme VAT,Programme Costs,Scholar,PIN066104,3638.8
FCDO,CSC,24/11/2023,Administration Fee,Admin Costs,Scholar,PIN066104,18194
FCDO,CSC,24/11/2023,Tuition Fee,Award Costs,University of Glasgow,PIN066093,14400
FCDO,CSC,24/11/2023,Tuition Fee,Award Costs,University of Strathclyde,PIN066091,16464
FCDO,CSC,24/11/2023,Consulting Fees,System Development,Scholar,PIN066102,687.5
FCDO,CSC,24/11/2023,Engagement,Programme Costs,Pau Creative Ltd.,PIN066101,4608
FCDO,CSC,24/11/2023,Tuition Fee,Award Costs,Queen Margaret University,PIN066094,17000
FCDO,CSC,24/11/2023,Tuition Fee,Award Costs,Loughborough University,PIN066036,1733.25
FCDO,CSC,24/11/2023,Tuition Fee,Award Costs,Loughborough University,PIN066058,1875
FCDO,CSC,24/11/2023,Tuition Fee,Award Costs,Loughborough University,PIN066059,-1500
FCDO,CSC,24/11/2023,Tuition Fee,Award Costs,Loughborough University,PIN066060,1875
FCDO,CSC,24/11/2023,Tuition Fee,Award Costs,Loughborough University,PIN066063,1733.25
FCDO,CSC,24/11/2023,Tuition Fee,Award Costs,Loughborough University,PIN066064,-1559.93
FCDO,CSC,24/11/2023,Tuition Fee,Award Costs,Loughborough University,PIN066065,-1559.93
FCDO,CSC,24/11/2023,Tuition Fee,Award Costs,Loughborough University,PIN066066,-1637.96
FCDO,CSC,24/11/2023,Tuition Fee,Award Costs,Loughborough University,PIN066067,1733.25
FCDO,CSC,24/11/2023,Tuition Fee,Award Costs,Loughborough University,PIN066076,-1687.5
FCDO,CSC,24/11/2023,Tuition Fee,Award Costs,Loughborough University,PIN066077,1875
FCDO,CSC,24/11/2023,Tuition Fee,Award Costs,Loughborough University,PIN066078,-1687.5
FCDO,CSC,24/11/2023,Tuition Fee,Award Costs,Loughborough University,PIN066079,1875
FCDO,CSC,24/11/2023,Tuition Fee,Award Costs,Loughborough University,PIN066080,-1500
FCDO,CSC,24/11/2023,Tuition Fee,Award Costs,Loughborough University,PIN066081,1875
FCDO,CSC,24/11/2023,Tuition Fee,Award Costs,Loughborough University,PIN066082,1733.25
FCDO,CSC,24/11/2023,Tuition Fee,Award Costs,Loughborough University,PIN066083,-1500
FCDO,CSC,24/11/2023,Tuition Fee,Award Costs,Loughborough University,PIN066084,-1500
FCDO,CSC,24/11/2023,Tuition Fee,Award Costs,Loughborough University,PIN066085,-1500
FCDO,CSC,24/11/2023,Tuition Fee,Award Costs,Loughborough University,PIN066086,-1500
FCDO,CSC,24/11/2023,Tuition Fee,Award Costs,Loughborough University,PIN066087,1875
FCDO,CSC,24/11/2023,Tuition Fee,Award Costs,Loughborough University,PIN066088,1875
FCDO,CSC,24/11/2023,Tuition Fee,Award Costs,Loughborough University,PIN066089,1875
FCDO,CSC,24/11/2023,Tuition Fee,Award Costs,Loughborough University,PIN066090,-1500
FCDO,CSC,24/11/2023,Tuition Fee,Award Costs,Loughborough University,PIN066096,1875
FCDO,CSC,24/11/2023,Tuition Fee,Award Costs,University of Exeter,PIN066054,22500
FCDO,CSC,24/11/2023,Tuition Fee,Award Costs,University of Exeter,PIN066055,22500
FCDO,CSC,24/11/2023,Tuition Fee,Award Costs,University of Exeter,PIN066056,18000
FCDO,CSC,24/11/2023,Tuition Fee,Award Costs,University of Glasgow,PIN066075,18000
FCDO,CSC,24/11/2023,Visa Costs,Award Costs,"Foreign, Commonwealth & Development Office",PIN066103,24321
FCDO,CSC,24/11/2023,Immigration Health Surcharge,Award Costs,"Foreign, Commonwealth & Development Office",PIN066103,43710
FCDO,CSC,24/11/2023,Visa Costs,Award Costs,"Foreign, Commonwealth & Development Office",PIN066103,75504
FCDO,CSC,24/11/2023,Immigration Health Surcharge,Award Costs,"Foreign, Commonwealth & Development Office",PIN066103,146640
FCDO,CSC,24/11/2023,Visa Costs,Award Costs,"Foreign, Commonwealth & Development Office",PIN066103,26499
FCDO,CSC,24/11/2023,Immigration Health Surcharge,Award Costs,"Foreign, Commonwealth & Development Office",PIN066103,151575
FCDO,CSC,24/11/2023,Visa Costs,Award Costs,"Foreign, Commonwealth & Development Office",PIN066103,34122
FCDO,CSC,24/11/2023,Immigration Health Surcharge,Award Costs,"Foreign, Commonwealth & Development Office",PIN066103,66740
FCDO,CSC,24/11/2023,Visa Costs,Award Costs,"Foreign, Commonwealth & Development Office",PIN066103,1392
FCDO,CSC,24/11/2023,Immigration Health Surcharge,Award Costs,"Foreign, Commonwealth & Development Office",PIN066103,335
FCDO,CSC,24/11/2023,Visa Costs,Award Costs,"Foreign, Commonwealth & Development Office",PIN066103,29730
FCDO,CSC,24/11/2023,Immigration Health Surcharge,Award Costs,"Foreign, Commonwealth & Development Office",PIN066103,57575
FCDO,CSC,24/11/2023,Visa Costs,Award Costs,"Foreign, Commonwealth & Development Office",PIN066103,69252
FCDO,CSC,24/11/2023,Immigration Health Surcharge,Award Costs,"Foreign, Commonwealth & Development Office",PIN066103,140295
FCDO,CSC,24/11/2023,Visa Costs,Award Costs,"Foreign, Commonwealth & Development Office",PIN066103,33075
FCDO,CSC,24/11/2023,Immigration Health Surcharge,Award Costs,"Foreign, Commonwealth & Development Office",PIN066103,199750
FCDO,CSC,24/11/2023,Visa Costs,Award Costs,"Foreign, Commonwealth & Development Office",PIN066103,35844
FCDO,CSC,24/11/2023,Immigration Health Surcharge,Award Costs,"Foreign, Commonwealth & Development Office",PIN066103,70970
FCDO,CSC,24/11/2023,Scholar Travel,Award Costs,Scholar,PIN066097,1072.54
FCDO,CSC,27/11/2023,Scholar Travel,Award Costs,Diversity Travel,PIN066105,5441.34
FCDO,CSC,27/11/2023,Scholar Travel,Award Costs,Diversity Travel,PIN066105,2809.26
FCDO,CSC,27/11/2023,Scholar Travel,Award Costs,Diversity Travel,PIN066105,2664.32
FCDO,CSC,27/11/2023,Scholar Travel,Award Costs,Diversity Travel,PIN066105,2583.1
FCDO,CSC,27/11/2023,Scholar Travel,Award Costs,Diversity Travel,PIN066105,2582.82
FCDO,CSC,27/11/2023,Scholar Travel,Award Costs,Diversity Travel,PIN066105,2508
FCDO,CSC,27/11/2023,Scholar Travel,Award Costs,Diversity Travel,PIN066105,2506.94
FCDO,CSC,27/11/2023,Scholar Travel,Award Costs,Diversity Travel,PIN066105,2477.95
FCDO,CSC,27/11/2023,Scholar Travel,Award Costs,Diversity Travel,PIN066105,2421.04
FCDO,CSC,27/11/2023,Scholar Travel,Award Costs,Diversity Travel,PIN066105,2357.74
FCDO,CSC,27/11/2023,Scholar Travel,Award Costs,Diversity Travel,PIN066105,2263.34
FCDO,CSC,27/11/2023,Scholar Travel,Award Costs,Diversity Travel,PIN066105,2262.54
FCDO,CSC,27/11/2023,Scholar Travel,Award Costs,Diversity Travel,PIN066105,2172.29
FCDO,CSC,27/11/2023,Scholar Travel,Award Costs,Diversity Travel,PIN066105,2167.14
FCDO,CSC,27/11/2023,Scholar Travel,Award Costs,Diversity Travel,PIN066105,2131.9
FCDO,CSC,27/11/2023,Scholar Travel,Award Costs,Diversity Travel,PIN066105,2102.9
FCDO,CSC,27/11/2023,Scholar Travel,Award Costs,Diversity Travel,PIN066105,2065.94
FCDO,CSC,27/11/2023,Scholar Travel,Award Costs,Diversity Travel,PIN066105,1940.14
FCDO,CSC,27/11/2023,Fieldwork Airfare,Award Costs,Diversity Travel,PIN066105,1923.47
FCDO,CSC,27/11/2023,Scholar Travel,Award Costs,Diversity Travel,PIN066105,1916.36
FCDO,CSC,27/11/2023,Scholar Travel,Award Costs,Diversity Travel,PIN066105,1881.8
FCDO,CSC,27/11/2023,Scholar Travel,Award Costs,Diversity Travel,PIN066105,1832.3
FCDO,CSC,27/11/2023,Scholar Travel,Award Costs,Diversity Travel,PIN066105,1831.94
FCDO,CSC,27/11/2023,Fieldwork Airfare,Award Costs,Diversity Travel,PIN066105,1795.94
FCDO,CSC,27/11/2023,Scholar Travel,Award Costs,Diversity Travel,PIN066105,1787.02
FCDO,CSC,27/11/2023,Scholar Travel,Award Costs,Diversity Travel,PIN066105,1751.2
FCDO,CSC,27/11/2023,Scholar Travel,Award Costs,Diversity Travel,PIN066105,1704.82
FCDO,CSC,27/11/2023,Scholar Travel,Award Costs,Diversity Travel,PIN066105,1685.6
FCDO,CSC,27/11/2023,Scholar Travel,Award Costs,Diversity Travel,PIN066105,1676.02
FCDO,CSC,27/11/2023,Scholar Travel,Award Costs,Diversity Travel,PIN066105,1661.7
FCDO,CSC,27/11/2023,Scholar Travel,Award Costs,Diversity Travel,PIN066105,1655.01
FCDO,CSC,27/11/2023,Scholar Travel,Award Costs,Diversity Travel,PIN066105,1635.21
FCDO,CSC,27/11/2023,Scholar Travel,Award Costs,Diversity Travel,PIN066105,1614.95
FCDO,CSC,27/11/2023,Scholar Travel,Award Costs,Diversity Travel,PIN066105,1607.4
FCDO,CSC,27/11/2023,Scholar Travel,Award Costs,Diversity Travel,PIN066105,1607.12
FCDO,CSC,27/11/2023,Scholar Travel,Award Costs,Diversity Travel,PIN066105,1600
FCDO,CSC,27/11/2023,Scholar Travel,Award Costs,Diversity Travel,PIN066105,1599.58
FCDO,CSC,27/11/2023,Scholar Travel,Award Costs,Diversity Travel,PIN066105,1599.3
FCDO,CSC,27/11/2023,Scholar Travel,Award Costs,Diversity Travel,PIN066105,1599.3
FCDO,CSC,27/11/2023,Scholar Travel,Award Costs,Diversity Travel,PIN066105,1599.2
FCDO,CSC,27/11/2023,Scholar Travel,Award Costs,Diversity Travel,PIN066105,1599.04
FCDO,CSC,27/11/2023,Scholar Travel,Award Costs,Diversity Travel,PIN066105,1597.45
FCDO,CSC,27/11/2023,Scholar Travel,Award Costs,Diversity Travel,PIN066105,1594.74
FCDO,CSC,27/11/2023,Scholar Travel,Award Costs,Diversity Travel,PIN066105,1593.62
FCDO,CSC,27/11/2023,Scholar Travel,Award Costs,Diversity Travel,PIN066105,1593.02
FCDO,CSC,27/11/2023,Scholar Travel,Award Costs,Diversity Travel,PIN066105,1589.67
FCDO,CSC,27/11/2023,Scholar Travel,Award Costs,Diversity Travel,PIN066105,1586.21
FCDO,CSC,27/11/2023,Scholar Travel,Award Costs,Diversity Travel,PIN066105,1586.21
FCDO,CSC,27/11/2023,Scholar Travel,Award Costs,Diversity Travel,PIN066105,1585.87
FCDO,CSC,27/11/2023,Scholar Travel,Award Costs,Diversity Travel,PIN066105,1584.03
FCDO,CSC,27/11/2023,Scholar Travel,Award Costs,Diversity Travel,PIN066105,1581.91
FCDO,CSC,27/11/2023,Scholar Travel,Award Costs,Diversity Travel,PIN066105,1580.04
FCDO,CSC,27/11/2023,Scholar Travel,Award Costs,Diversity Travel,PIN066105,1577.83
FCDO,CSC,27/11/2023,Scholar Travel,Award Costs,Diversity Travel,PIN066105,1577.27
FCDO,CSC,27/11/2023,Scholar Travel,Award Costs,Diversity Travel,PIN066105,1557.66
FCDO,CSC,27/11/2023,Scholar Travel,Award Costs,Diversity Travel,PIN066105,1555.72
FCDO,CSC,27/11/2023,Scholar Travel,Award Costs,Diversity Travel,PIN066105,1545.42
FCDO,CSC,27/11/2023,Scholar Travel,Award Costs,Diversity Travel,PIN066105,1544.74
FCDO,CSC,27/11/2023,Scholar Travel,Award Costs,Diversity Travel,PIN066105,1533.89
FCDO,CSC,27/11/2023,Scholar Travel,Award Costs,Diversity Travel,PIN066105,1527.13
FCDO,CSC,27/11/2023,Scholar Travel,Award Costs,Diversity Travel,PIN066105,1526.9
FCDO,CSC,27/11/2023,Scholar Travel,Award Costs,Diversity Travel,PIN066105,1513.6
FCDO,CSC,27/11/2023,Scholar Travel,Award Costs,Diversity Travel,PIN066105,1508.53
FCDO,CSC,27/11/2023,Scholar Travel,Award Costs,Diversity Travel,PIN066105,1490.08
FCDO,CSC,27/11/2023,Scholar Travel,Award Costs,Diversity Travel,PIN066105,1466.84
FCDO,CSC,27/11/2023,Scholar Travel,Award Costs,Diversity Travel,PIN066105,1438.92
FCDO,CSC,27/11/2023,Scholar Travel,Award Costs,Diversity Travel,PIN066105,1433.67
FCDO,CSC,27/11/2023,Scholar Travel,Award Costs,Diversity Travel,PIN066105,1430
FCDO,CSC,27/11/2023,Scholar Travel,Award Costs,Diversity Travel,PIN066105,1429.52
FCDO,CSC,27/11/2023,Scholar Travel,Award Costs,Diversity Travel,PIN066105,1429.14
FCDO,CSC,27/11/2023,Scholar Travel,Award Costs,Diversity Travel,PIN066105,1416.34
FCDO,CSC,27/11/2023,Scholar Travel,Award Costs,Diversity Travel,PIN066105,1413.98
FCDO,CSC,27/11/2023,Scholar Travel,Award Costs,Diversity Travel,PIN066105,1410.98
FCDO,CSC,27/11/2023,Scholar Travel,Award Costs,Diversity Travel,PIN066105,1407.9
FCDO,CSC,27/11/2023,Scholar Travel,Award Costs,Diversity Travel,PIN066105,1406.78
FCDO,CSC,27/11/2023,Scholar Travel,Award Costs,Diversity Travel,PIN066105,1392.3
FCDO,CSC,27/11/2023,Fieldwork Airfare,Award Costs,Diversity Travel,PIN066105,1346.32
FCDO,CSC,27/11/2023,Scholar Travel,Award Costs,Diversity Travel,PIN066105,1342.14
FCDO,CSC,27/11/2023,Scholar Travel,Award Costs,Diversity Travel,PIN066105,1330.04
FCDO,CSC,27/11/2023,Scholar Travel,Award Costs,Diversity Travel,PIN066105,1322.25
FCDO,CSC,27/11/2023,Scholar Travel,Award Costs,Diversity Travel,PIN066105,1319.1
FCDO,CSC,27/11/2023,Scholar Travel,Award Costs,Diversity Travel,PIN066105,1250.95
FCDO,CSC,27/11/2023,Scholar Travel,Award Costs,Diversity Travel,PIN066105,1249.76
FCDO,CSC,27/11/2023,Scholar Travel,Award Costs,Diversity Travel,PIN066105,1247.43
FCDO,CSC,27/11/2023,Scholar Travel,Award Costs,Diversity Travel,PIN066105,1235
FCDO,CSC,27/11/2023,Scholar Travel,Award Costs,Diversity Travel,PIN066105,1233.45
FCDO,CSC,27/11/2023,Scholar Travel,Award Costs,Diversity Travel,PIN066105,1233.23
FCDO,CSC,27/11/2023,Scholar Travel,Award Costs,Diversity Travel,PIN066105,1232.31
FCDO,CSC,27/11/2023,Scholar Travel,Award Costs,Diversity Travel,PIN066105,1221.82
FCDO,CSC,27/11/2023,Scholar Travel,Award Costs,Diversity Travel,PIN066105,1208.14
FCDO,CSC,27/11/2023,Scholar Travel,Award Costs,Diversity Travel,PIN066105,1199.44
FCDO,CSC,27/11/2023,Scholar Travel,Award Costs,Diversity Travel,PIN066105,1179.02
FCDO,CSC,27/11/2023,Scholar Travel,Award Costs,Diversity Travel,PIN066105,1175.15
FCDO,CSC,27/11/2023,Scholar Travel,Award Costs,Diversity Travel,PIN066105,1166.5
FCDO,CSC,27/11/2023,Scholar Travel,Award Costs,Diversity Travel,PIN066105,1158.99
FCDO,CSC,27/11/2023,Scholar Travel,Award Costs,Diversity Travel,PIN066105,1149.8
FCDO,CSC,27/11/2023,Scholar Travel,Award Costs,Diversity Travel,PIN066105,1145.35
FCDO,CSC,27/11/2023,Scholar Travel,Award Costs,Diversity Travel,PIN066105,1143.4
FCDO,CSC,27/11/2023,Scholar Travel,Award Costs,Diversity Travel,PIN066105,1131
FCDO,CSC,27/11/2023,Scholar Travel,Award Costs,Diversity Travel,PIN066105,1123.03
FCDO,CSC,27/11/2023,Scholar Travel,Award Costs,Diversity Travel,PIN066105,1118.4
FCDO,CSC,27/11/2023,Scholar Travel,Award Costs,Diversity Travel,PIN066105,1116.6
FCDO,CSC,27/11/2023,Scholar Travel,Award Costs,Diversity Travel,PIN066105,1110.6
FCDO,CSC,27/11/2023,Scholar Travel,Award Costs,Diversity Travel,PIN066105,1102.02
FCDO,CSC,27/11/2023,Scholar Travel,Award Costs,Diversity Travel,PIN066105,1099.59
FCDO,CSC,27/11/2023,Scholar Travel,Award Costs,Diversity Travel,PIN066105,1099.02
FCDO,CSC,27/11/2023,Scholar Travel,Award Costs,Diversity Travel,PIN066105,1094.72
FCDO,CSC,27/11/2023,Scholar Travel,Award Costs,Diversity Travel,PIN066105,1094.35
FCDO,CSC,27/11/2023,Scholar Travel,Award Costs,Diversity Travel,PIN066105,1087.21
FCDO,CSC,27/11/2023,Scholar Travel,Award Costs,Diversity Travel,PIN066105,1085.67
FCDO,CSC,27/11/2023,Scholar Travel,Award Costs,Diversity Travel,PIN066105,1075.88
FCDO,CSC,27/11/2023,Scholar Travel,Award Costs,Diversity Travel,PIN066105,1071.71
FCDO,CSC,27/11/2023,Scholar Travel,Award Costs,Diversity Travel,PIN066105,1070.8
FCDO,CSC,27/11/2023,Scholar Travel,Award Costs,Diversity Travel,PIN066105,1069.33
FCDO,CSC,27/11/2023,Scholar Travel,Award Costs,Diversity Travel,PIN066105,1067.83
FCDO,CSC,27/11/2023,Scholar Travel,Award Costs,Diversity Travel,PIN066105,1064.17
FCDO,CSC,27/11/2023,Scholar Travel,Award Costs,Diversity Travel,PIN066105,1060.07
FCDO,CSC,27/11/2023,Scholar Travel,Award Costs,Diversity Travel,PIN066105,1056.85
FCDO,CSC,27/11/2023,Scholar Travel,Award Costs,Diversity Travel,PIN066105,1049.67
FCDO,CSC,27/11/2023,Scholar Travel,Award Costs,Diversity Travel,PIN066105,1047.23
FCDO,CSC,27/11/2023,Scholar Travel,Award Costs,Diversity Travel,PIN066105,1037.13
FCDO,CSC,27/11/2023,Scholar Travel,Award Costs,Diversity Travel,PIN066105,1035.67
FCDO,CSC,27/11/2023,Scholar Travel,Award Costs,Diversity Travel,PIN066105,1034.8
FCDO,CSC,27/11/2023,Scholar Travel,Award Costs,Diversity Travel,PIN066105,1031.51
FCDO,CSC,27/11/2023,Scholar Travel,Award Costs,Diversity Travel,PIN066105,1024.1
FCDO,CSC,27/11/2023,Scholar Travel,Award Costs,Diversity Travel,PIN066105,1022.3
FCDO,CSC,27/11/2023,Scholar Travel,Award Costs,Diversity Travel,PIN066105,1021.28
FCDO,CSC,27/11/2023,Scholar Travel,Award Costs,Diversity Travel,PIN066105,1018.5
FCDO,CSC,27/11/2023,Scholar Travel,Award Costs,Diversity Travel,PIN066105,999.51
FCDO,CSC,27/11/2023,Scholar Travel,Award Costs,Diversity Travel,PIN066105,999.29
FCDO,CSC,27/11/2023,Scholar Travel,Award Costs,Diversity Travel,PIN066105,997.33
FCDO,CSC,27/11/2023,Scholar Travel,Award Costs,Diversity Travel,PIN066105,997.21
FCDO,CSC,27/11/2023,Scholar Travel,Award Costs,Diversity Travel,PIN066105,996.41
FCDO,CSC,27/11/2023,Scholar Travel,Award Costs,Diversity Travel,PIN066105,992.11
FCDO,CSC,27/11/2023,Scholar Travel,Award Costs,Diversity Travel,PIN066105,990.99
FCDO,CSC,27/11/2023,Scholar Travel,Award Costs,Diversity Travel,PIN066105,988.94
FCDO,CSC,27/11/2023,Scholar Travel,Award Costs,Diversity Travel,PIN066105,987.21
FCDO,CSC,27/11/2023,Scholar Travel,Award Costs,Diversity Travel,PIN066105,971.2
FCDO,CSC,27/11/2023,Scholar Travel,Award Costs,Diversity Travel,PIN066105,968.4
FCDO,CSC,27/11/2023,Scholar Travel,Award Costs,Diversity Travel,PIN066105,963.53
FCDO,CSC,27/11/2023,Scholar Travel,Award Costs,Diversity Travel,PIN066105,957.21
FCDO,CSC,27/11/2023,Scholar Travel,Award Costs,Diversity Travel,PIN066105,956.31
FCDO,CSC,27/11/2023,Scholar Travel,Award Costs,Diversity Travel,PIN066105,949.99
FCDO,CSC,27/11/2023,Scholar Travel,Award Costs,Diversity Travel,PIN066105,932.39
FCDO,CSC,27/11/2023,Scholar Travel,Award Costs,Diversity Travel,PIN066105,924.79
FCDO,CSC,27/11/2023,Scholar Travel,Award Costs,Diversity Travel,PIN066105,919.49
FCDO,CSC,27/11/2023,Scholar Travel,Award Costs,Diversity Travel,PIN066105,917.41
FCDO,CSC,27/11/2023,Scholar Travel,Award Costs,Diversity Travel,PIN066105,899.77
FCDO,CSC,27/11/2023,Scholar Travel,Award Costs,Diversity Travel,PIN066105,897.06
FCDO,CSC,27/11/2023,Scholar Travel,Award Costs,Diversity Travel,PIN066105,896.74
FCDO,CSC,27/11/2023,Scholar Travel,Award Costs,Diversity Travel,PIN066105,895.97
FCDO,CSC,27/11/2023,Scholar Travel,Award Costs,Diversity Travel,PIN066105,894.15
FCDO,CSC,27/11/2023,Scholar Travel,Award Costs,Diversity Travel,PIN066105,887.23
FCDO,CSC,27/11/2023,Scholar Travel,Award Costs,Diversity Travel,PIN066105,884.95
FCDO,CSC,27/11/2023,Scholar Travel,Award Costs,Diversity Travel,PIN066105,883.87
FCDO,CSC,27/11/2023,Scholar Travel,Award Costs,Diversity Travel,PIN066105,882.3
FCDO,CSC,27/11/2023,Scholar Travel,Award Costs,Diversity Travel,PIN066105,880.36
FCDO,CSC,27/11/2023,Scholar Travel,Award Costs,Diversity Travel,PIN066105,878.61
FCDO,CSC,27/11/2023,Scholar Travel,Award Costs,Diversity Travel,PIN066105,875.09
FCDO,CSC,27/11/2023,Scholar Travel,Award Costs,Diversity Travel,PIN066105,870.83
FCDO,CSC,27/11/2023,Scholar Travel,Award Costs,Diversity Travel,PIN066105,864.42
FCDO,CSC,27/11/2023,Scholar Travel,Award Costs,Diversity Travel,PIN066105,859.68
FCDO,CSC,27/11/2023,Scholar Travel,Award Costs,Diversity Travel,PIN066105,849.6
FCDO,CSC,27/11/2023,Scholar Travel,Award Costs,Diversity Travel,PIN066105,848.2
FCDO,CSC,27/11/2023,Scholar Travel,Award Costs,Diversity Travel,PIN066105,845.85
FCDO,CSC,27/11/2023,Scholar Travel,Award Costs,Diversity Travel,PIN066105,845.01
FCDO,CSC,27/11/2023,Scholar Travel,Award Costs,Diversity Travel,PIN066105,840.03
FCDO,CSC,27/11/2023,Scholar Travel,Award Costs,Diversity Travel,PIN066105,816.89
FCDO,CSC,27/11/2023,Scholar Travel,Award Costs,Diversity Travel,PIN066105,814
FCDO,CSC,27/11/2023,Scholar Travel,Award Costs,Diversity Travel,PIN066105,774.24
FCDO,CSC,27/11/2023,Scholar Travel,Award Costs,Diversity Travel,PIN066105,715.05
FCDO,CSC,27/11/2023,Scholar Travel,Award Costs,Diversity Travel,PIN066105,714.67
FCDO,CSC,27/11/2023,Scholar Travel,Award Costs,Diversity Travel,PIN066105,712.11
FCDO,CSC,27/11/2023,Scholar Travel,Award Costs,Diversity Travel,PIN066105,708.68
FCDO,CSC,27/11/2023,Scholar Travel,Award Costs,Diversity Travel,PIN066105,693.9
FCDO,CSC,27/11/2023,Scholar Travel,Award Costs,Diversity Travel,PIN066105,480.84
FCDO,CSC,27/11/2023,Scholar Travel,Award Costs,Diversity Travel,PIN066105,106.61
FCDO,CSC,27/11/2023,Scholar Travel,Award Costs,Diversity Travel,PIN066105,95
FCDO,CSC,27/11/2023,Scholar Travel,Award Costs,Diversity Travel,PIN066105,85
FCDO,CSC,27/11/2023,Scholar Travel,Award Costs,Diversity Travel,PIN066105,77.8
FCDO,CSC,27/11/2023,Scholar Travel,Award Costs,Diversity Travel,PIN066105,69.5
FCDO,CSC,27/11/2023,Scholar Travel,Award Costs,Diversity Travel,PIN066105,60.5
FCDO,CSC,27/11/2023,Scholar Travel,Award Costs,Diversity Travel,PIN066105,56.5
FCDO,CSC,27/11/2023,Scholar Travel,Award Costs,Diversity Travel,PIN066105,52.7
FCDO,CSC,27/11/2023,Scholar Travel,Award Costs,Diversity Travel,PIN066105,29.3
FCDO,CSC,27/11/2023,Scholar Travel,Award Costs,Diversity Travel,PIN066105,26.6
FCDO,CSC,27/11/2023,Scholar Travel,Award Costs,Diversity Travel,PIN066105,26.6
FCDO,CSC,27/11/2023,Scholar Travel,Award Costs,Diversity Travel,PIN066105,26.6
FCDO,CSC,27/11/2023,Scholar Travel,Award Costs,Diversity Travel,PIN066105,20.9
FCDO,CSC,27/11/2023,Scholar Travel,Award Costs,Diversity Travel,PIN066105,-800.24
FCDO,CSC,27/11/2023,Scholar Travel,Award Costs,Diversity Travel,PIN066105,-849.88
FCDO,CSC,27/11/2023,Scholar Travel,Award Costs,Diversity Travel,PIN066105,-1599.2
FCDO,CSC,27/11/2023,Scholar Stipend,Award Costs,Scholar,PIN066123,-1922.25
FCDO,CSC,27/11/2023,Scholar Allowances,Award Costs,Scholar,PIN066123,-522
FCDO,CSC,28/11/2023,Scholar Allowances,Award Costs,Scholar,PIN066122,522
FCDO,CSC,28/11/2023,Scholar Stipend,Award Costs,Scholar,PIN066122,1347
FCDO,CSC,28/11/2023,Scholar Allowances,Award Costs,Scholar,PIN066122,522
FCDO,CSC,28/11/2023,Scholar Stipend,Award Costs,Scholar,PIN066122,1391.25
FCDO,CSC,28/11/2023,Scholar Allowances,Award Costs,Scholar,PIN066122,522
FCDO,CSC,28/11/2023,Scholar Stipend,Award Costs,Scholar,PIN066122,1347
FCDO,CSC,28/11/2023,Scholar Allowances,Award Costs,Scholar,PIN066122,522
FCDO,CSC,28/11/2023,Scholar Stipend,Award Costs,Scholar,PIN066122,1701
FCDO,CSC,28/11/2023,Bank Charges,Programme Costs,MasterCard Prepaid Management Services Ltd,PIN066122,78.74
FCDO,CSC,29/11/2023,Alumni Engagement,Programme Costs,Association of Commonwealth Univs,PIN066120,10
FCDO,CSC,29/11/2023,Alumni Engagement,Programme Costs,Association of Commonwealth Univs,PIN066120,1138.17
FCDO,CSC,30/11/2023,Alumni Engagement,Programme Costs,DHL International (UK) Limited,PIN066124,116.96
FCDO,CSC,30/11/2023,Postage & Courier,Programme Costs,DHL International (UK) Limited,PIN066124,576.13
